Cogmind - Beta 13 @@@ ROGUE MODE // 2024.04.09 @ 07:07:20 Player: weedlord420 Result: Self-destructed Performance ------------- Evolutions (1) 500 Regions Visited (3) 600 Robots Destroyed (37) 185 Value Destroyed (740) 740 Prototype IDs (3) 60 Alien Tech Used (0) 0 Bonus (0) 0 TOTAL SCORE: 2085 Bonus ------- None Cogmind --------- Core Integrity 322/400 Matter 270/300 Energy 280/280 System Corruption 0% Temperature Cool (0) Movement Walking (120) Location -9/Materials Parts ------- > --- POWER (1) -------- Heavy Ion Engine > --- PROPULSION (2) --- Aluminum Leg Aluminum Leg > --- UTILITY (4) ------ Small Storage Unit > --- WEAPON (2) ------- Light Assault Rifle Heavy Assault Rifle > --- INVENTORY (8) ---- Heavy Ion Engine Aluminum Leg Improved Hover Unit Signal Interpreter ECM Suite Hacking Suite Hacking Suite Datajack Peak State ------------ > --- POWER ------------ Light Nuclear Core > --- PROPULSION ------- Aluminum Leg Aluminum Leg > --- UTILITY ---------- Improved Heat Sink Small Storage Unit > --- WEAPON ----------- Particle Gun Assault Rifle > --- INVENTORY -------- Light Ion Engine Aluminum Leg Aluminum Leg Signal Interpreter Seismic Detector ECM Suite Hacking Suite Datajack [Rating: 13] Favorites ----------- Power Light Nuclear Core Engine Light Ion Engine Power Core Light Nuclear Core Propulsion Aluminum Leg Leg Aluminum Leg Utility Small Storage Unit Device Improved Heat Sink Storage Small Storage Unit Weapon Assault Rifle Energy Gun Particle Gun Ballistic Gun Assault Rifle Build | -11 -10 -10 -9 ------- Run | Yrd Mat Min Mat Slots Evolved 2 | . . . 2 Power . | . . . . Propulsion . | . . . . Utility 2 | . . . 2 Weapon . | . . . . Parts Attached 25 | 7 8 5 5 Power 6 | 1 1 2 2 Engine 5 | 1 . 2 2 Core 1 | . 1 . . Reactor . | . . . . Propulsion 7 | 2 2 2 1 Treads . | . . . . Leg 7 | 2 2 2 1 Wheel . | . . . . Hover . | . . . . Flight . | . . . . Utility 5 | 2 3 . . Device 4 | 1 3 . . Storage 1 | 1 . . . Processor . | . . . . Hackware . | . . . . Protection . | . . . . Artifact . | . . . . Weapon 7 | 2 2 1 2 Energy Gun 1 | . 1 . . Energy Cannon . | . . . . Ballistic Gun 6 | 2 1 1 2 Ballistic Cannon . | . . . . Launcher . | . . . . Special Weapon . | . . . . Impact Weapon . | . . . . Slashing Weapon . | . . . . Piercing Weapon . | . . . . Special Melee Weapon . | . . . . Unidentified Prototypes 1 | . . . 1 Parts Lost 10 | . 1 6 3 Power 2 | . . 2 . Propulsion 3 | . . 2 1 Utility 2 | . 1 1 . Weapon 3 | . . 1 2 Highest Loss Streak 4 | . 1 4 2 To Critical Strikes . | . . . . Average Slot Usage (%) 92 | . 95 95 64 Engine 6 | . 3 12 11 Core 7 | . 10 1 . Leg 27 | . 28 27 22 Device 9 | . 9 11 . Storage 13 | . 14 14 11 Energy Gun 11 | . 12 14 2 Ballistic Gun 15 | . 15 13 18 Naked Turns . | . . . . Heaviest Build 17 | 12 17 16 17 Greatest Support 20 | 20 20 20 20 Greatest Overweight (x) 1 | . . 1 1 Average Overweight (x) . | . . . . Largest Inventory Capacity 8 | 8 8 8 8 Average Capacity 7 | 6 8 8 8 Most Carried 8 | 5 8 8 8 Average Carried 7 | . 7 7 7 Final Capacity 8 | 8 8 8 8 Final Carried 8 | . 8 8 8 Class Distribution -------------------- 62% | Scavenger-Mutant 37% | Mutant Dominant Class ---------------- Scavenger-Mutant | -10/Materials Scavenger-Mutant | -10/Mines Mutant | -9/Materials Resources | -11 -10 -10 -9 ----------- Run | Yrd Mat Min Mat Matter Collected 802 | 170 446 95 91 Remotely . | . . . . Salvage Created 1114 | 19 504 329 262 Parts 79 | 3 43 17 16 Haulers Intercepted 2 | . 1 . 1 Recyclers Shooed 3 | . 1 1 1 Parts Field Recycled . | . . . . Retrieved Matter . | . . . . Parts Self-Destructed . | . . . . Prevented . | . . . . Kills | -11 -10 -10 -9 ------- Run | Yrd Mat Min Mat Combat Hostiles Destroyed 25 | . 10 9 6 Guns 25 | . 10 9 6 Classes Destroyed 10 | 1 7 1 1 Worker 1 | . 1 . . Builder 1 | . 1 . . Tunneler 1 | 1 . . . Hauler 2 | . 1 . 1 Recycler 2 | . . 1 1 Operator 2 | . 2 . . Watcher 3 | . 3 . . Swarmer 13 | . 3 5 5 Grunt 11 | . 7 4 . Sentry 1 | . . . 1 Best Kill Streak 6 | 1 4 4 6 Combat Bots Only 4 | . 3 4 4 Max Kills in Single Turn 2 | 1 2 1 1 Gunslinging 1 | . 1 . . Exploded . | . . . . Melee . | . . . . Uniques/NPCs Destroyed . | . . . . Combat | -11 -10 -10 -9 -------- Run | Yrd Mat Min Mat Hostile Shots Fired 170 | . 60 64 46 Missed 44 | . 20 15 9 Damage Taken 1340 | . 438 580 322 Core 281 | . 58 145 78 Absorbed by Shields . | . . . . Regen/Repaired (Parts) 92 | . 92 . . Core Remaining (%) 59 | 100 . 18 . Volleys Fired 146 | 1 82 32 31 Largest 2 | 2 2 2 2 Hottest 85 | 40 85 85 85 Shots Fired 273 | 2 160 58 53 Gun 273 | 2 160 58 53 Cannon . | . . . . Launcher . | . . . . Special . | . . . . Kinetic 181 | 2 103 27 49 Thermal 92 | . 57 31 4 Explosive . | . . . . Electromagnetic . | . . . . Robot Hit Streak 12 | 1 10 12 8 Robot Miss Streak 4 | . 4 2 4 Penetration Max . | . . . . Secondary Targets 4 | . 1 2 1 Max Gunslinging Chain 1 | . 1 1 1 Shots Hit Robots 152 | 1 89 36 26 Core Hits 64 | 1 31 17 15 Critical Kills . | . . . . Critical Parts Destroyed . | . . . . Critical Strikes 2 | . 2 . . Burn 2 | . 2 . . Melee Attacks . | . . . . Impact . | . . . . Slashing . | . . . . Piercing . | . . . . Sneak Attacks . | . . . . Combat Hostiles . | . . . . Follow-up Attacks . | . . . . Damage Inflicted 2035 | 10 1180 548 297 Guns 2035 | 10 1180 548 297 Cannons . | . . . . Explosions . | . . . . Melee . | . . . . Ramming . | . . . . Kinetic 1125 | 10 637 199 279 Thermal 910 | . 543 349 18 Explosive . | . . . . Electromagnetic . | . . . . Impact . | . . . . Slashing . | . . . . Piercing . | . . . . Highest Corruption . | . . . . Average Corruption . | . . . . Corruption Purged . | . . . . Corruption Blocked . | . . . . Overload Shots . | . . . . Overflow Damage . | . . . . Projectiles . | . . . . Explosions . | . . . . Melee . | . . . . Knockbacks . | . . . . Impact . | . . . . Kinetic . | . . . . Secondary . | . . . . Self-Inflicted Damage . | . . . . Shots . | . . . . Rammed . | . . . . Targets Rammed . | . . . . Kicked . | . . . . Crushed . | . . . . Highest Temperature 368 | . 225 368 76 Average Temperature 85 | . 67 159 27 Received Heat Transfer 498 | . 177 303 18 Effects 1 | . . 1 . Energy Bleed 1 | . . 1 . Siege Activations . | . . . . Robots Corrupted . | . . . . Combat Hostiles . | . . . . Parts Fried . | . . . . Impact Corruptions . | . . . . Robots Melted . | . . . . Combat Hostiles . | . . . . Parts Melted 3 | . 2 1 . Heat Transferred 2294 | . 1443 814 37 Parts Sabotaged . | . . . . Parts Stolen . | . . . . Parts Stripped . | . . . . Power Chain Reactions . | . . . . Alert | -11 -10 -10 -9 ------- Run | Yrd Mat Min Mat Peak Influence 205 | 5 202 120 205 Initial 23 | . 3 . 23 Average 47 | . 38 49 109 Maximum Alert Level 1 | . 1 . 1 Low Security (%) 97 | 100 96 100 97 Level 1 2 | . 3 . 2 Level 2 . | . . . . Level 3 . | . . . . Level 4 . | . . . . Level 5 . | . . . . High Security . | . . . . Max Security . | . . . . Squads Dispatched 2 | . 1 . 1 Investigation 1 | . 1 . . Extermination . | . . . . Reinforcement 1 | . . . 1 Assault . | . . . . Garrison . | . . . . Intercept . | . . . . Searches Triggered . | . . . . Construction Impeded . | . . . . Haulers Reinforced . | . . . . Active Scanning Responses . | . . . . Cargo Convoy Interrupts . | . . . . Stealth | -11 -10 -10 -9 --------- Run | Yrd Mat Min Mat Distress Signals 4 | . 3 . 1 Communications Jammed . | . . . . Distress Signals . | . . . . Times Spotted 46 | . 21 11 14 Peak Tracking Total 7 | . 3 4 7 Tactical Retreats 1 | . . 1 . Traps | -11 -10 -10 -9 ------- Run | Yrd Mat Min Mat Traps Triggered . | . . . . Indirectly . | . . . . Trap Hack Attempts . | . . . . Triggered . | . . . . Disarmed . | . . . . Reprogrammed . | . . . . Reused . | . . . . Traps Extracted . | . . . . Installed . | . . . . Triggered . | . . . . Machines | -11 -10 -10 -9 ---------- Run | Yrd Mat Min Mat Machines Disabled 3 | . 1 . 2 Max in Single Turn 1 | . 1 . 1 Machines Repaired . | . . . . Machines Dismantled . | . . . . Machines Sabotaged . | . . . . Overloaded Fab Kills . | . . . . Hacking | -11 -10 -10 -9 --------- Run | Yrd Mat Min Mat Machines Accessed 6 | . 5 1 . Terminals 5 | . 4 1 . Fabricators . | . . . . Repair Stations 1 | . 1 . . Recycling Units . | . . . . Scanalyzers . | . . . . Garrison Access . | . . . . Total Hacks 13 | . 11 2 . Successful 7 | . 6 1 . Failed 6 | . 5 1 . Catastrophic . | . . . . Database Lockouts . | . . . . Manual . | . . . . Terminals 10 | . 8 2 . Fabricators . | . . . . Repair Stations 3 | . 3 . . Recycling Units . | . . . . Scanalyzers . | . . . . Garrison Access . | . . . . Terminal Hacks 5 | . 4 1 . Prototype ID Bank 1 | . 1 . . Emergency Access Points 1 | . 1 . . Terminal Index 1 | . 1 . . Locate Traps 1 | . 1 . . Dispatch Records 1 | . . 1 . Fabricator Hacks . | . . . . Repair Station Hacks 2 | . 2 . . Scan Component 1 | . 1 . . Repair 1 | . 1 . . Recycling Unit Hacks . | . . . . Scanalyzer . | . . . . Garrison Access Hacks . | . . . . Unauthorized Hacks . | . . . . Terminals . | . . . . Fabricators . | . . . . Repair Stations . | . . . . Recycling Units . | . . . . Scanalyzers . | . . . . Garrison Access . | . . . . Data Cores Recovered 1 | . 1 . . Used . | . . . . Hacking Detections 3 | . 3 . . Full Trace Events 1 | . 1 . . Feedback Events . | . . . . Feedback Blocked . | . . . . Robot Schematics Acquired . | . . . . Robots Built . | . . . . Authchips . | . . . . Time . | . . . . Total Robot Build Rating . | . . . . Part Schematics Acquired . | . . . . Parts Built . | . . . . Authchips . | . . . . Time . | . . . . Total Part Build Rating . | . . . . Parts Repaired 1 | . 1 . . Time 26 | . 26 . . Parts Recycled . | . . . . Recycled Matter . | . . . . Retrieved Matter . | . . . . Retrieved Components . | . . . . Parts Scanalyzed . | . . . . Part Schematics Acquired . | . . . . Parts Damaged . | . . . . Bothacking | -11 -10 -10 -9 ------------ Run | Yrd Mat Min Mat Used RIF Installer . | . . . . Robots Hacked . | . . . . Non-combat . | . . . . Combat . | . . . . Robot Hacks Applied . | . . . . Relay Couplers Released . | . . . . Fabnet Peak Effective % . | . . . . Robots Rewired . | . . . . Allies Hacked . | . . . . Hacks Repelled . | . . . . Allies | -11 -10 -10 -9 -------- Run | Yrd Mat Min Mat Total Allies . | . . . . Largest Group . | . . . . Highest-Rated Group . | . . . . Highest-Rated Ally . | . . . . Total Orders . | . . . . Ally Attacks . | . . . . Total Damage . | . . . . Kills . | . . . . Allies Corrupted . | . . . . Allies Melted . | . . . . Intel | -11 -10 -10 -9 ------- Run | Yrd Mat Min Mat Robot Analysis Total . | . . . . Derelict Logs Recovered 1 | . . 1 . Drone Launches . | . . . . Drone Recoveries . | . . . . Exploration | -11 -10 -10 -9 ------------- Run | Yrd Mat Min Mat Turns Passed 2982 | 56 1915 737 274 Spaces Moved 1606 | 44 953 457 152 Core 19 | 19 . . . Treads . | . . . . Legs 1587 | 25 953 457 152 Wheels . | . . . . Hover . | . . . . Flight . | . . . . Fastest Speed 50 | 50 120 120 120 Average Speed 119 | 89 120 120 120 Slowest Speed 190 | 120 120 190 190 Overloaded Moves . | . . . . Propulsion Burnouts . | . . . . Robots Hopped . | . . . . Cave-ins Triggered . | . . . . Exploration Rate (%) 53 | 4 97 90 21 Regions Visited 3 Branch Regions 1 Pre-discovered Areas . | . . . . Known Exits Taken . | . . . . Unknown Exits Taken 3 | 1 1 1 . Scrap Searched 2 | . . 2 . Spaces Dug . | . . . . Terrain Destroyed . | . . . . Melee . | . . . . Projectile . | . . . . AOE . | . . . . Terrain Rammed . | . . . . Walls Destroyed . | . . . . Machines Disabled . | . . . . Actions | -11 -10 -10 -9 --------- Run | Yrd Mat Min Mat Total 2403 | 58 1567 583 195 Wait 597 | . 510 87 . Move 1603 | 43 952 456 152 Hop . | . . . . Pick Up 26 | 7 11 3 5 Fast Attach 4 | . 2 2 . Attach 14 | 7 1 3 3 Detach . | . . . . Swap 7 | . 5 . 2 Drop 6 | . 4 . 2 Fire 146 | 1 82 32 31 Melee . | . . . . Ram . | . . . . Kick . | . . . . Crush . | . . . . Escape Stasis . | . . . . Rewire . | . . . . Trap . | . . . . Miscellaneous . | . . . . Route ------- -11/Scrapyard -10/Materials (discovered 6 exits: [*Mat x3] / *Min x2 / [*Sub]) -10/Mines (discovered 2 exits: [*Mat] / [*Exi]) -9/Materials (discovered 1 exit: [*Min]) History --------- Turn | Location | Event 9 | -11/Scrapyard | Discovered new exit (range 14) 57 | -11/Scrapyard | Entered Materials 218 | -10/Materials | Discovered new exit (range 10) 304 | -10/Materials | Build established: Mutant 416 | -10/Materials | Discovered new exit (range 14) 573 | -10/Materials | Discovered new exit (range 9) 670 | -10/Materials | Discovered new exit (range 16) 687 | -10/Materials | Discovered new exit (range 10) 1244 | -10/Materials | Build established: Scavenger-Mutant 1593 | -10/Materials | Repaired Assault Rifle 1861 | -10/Materials | Discovered new exit (range 10) 1972 | -10/Materials | Entered Mines 2166 | -10/Mines | Received a Rocket Launcher from a helpful Derelict 2260 | -10/Mines | Core integrity fell below 50% 2436 | -10/Mines | Learned Materials emergency access door positions 2596 | -10/Mines | Core integrity fell below 20% 2634 | -10/Mines | Discovered new exit (range 15) 2642 | -10/Mines | Lost 4 parts (1p1n1u1w) 2686 | -10/Mines | Deemed a non-threat by the Exiles lab entrance 2686 | -10/Mines | Discovered new exit (range 5) 2709 | -10/Mines | Entered Materials 2709 | -9/Materials | Evolved 2 slots: Utility x2 2932 | -9/Materials | Discovered new exit (range 16) 2983 | -9/Materials | Self-destructed Last Messages --------------- K-01 Serf collects debris. A-02 Transporter destroyed. K-01 Serf collects debris. Acquired 26 matter. K-01 Serf collects debris. K-01 Serf cleans the Purification Channel. Acquired Prototype Engine. K-01 Serf collects debris. Identified Hvy. Ion Engine. K-01 Serf collects debris. T-07 Excavator is excavating. Dropped Lgt. Ion Engine. Acquired Imp. Hover Unit. EXIT=FOUND Electrolysis Chamber disabled. K-01 Serf collects debris. T-07 Excavator is excavating. S-10 Pest destroyed. Switching to secondary target: S-10 Pest. K-01 Serf collects debris. Map ----- +----------------------------------------------------+ | ?????????????????????????????????????????????????? | | ?????????????????????????????????????????????????? | | ?????????????????????????????????????????????????? | | ?????????????????????????????????????????????????? | | ?????????????????????????????????????????????????? | | ?????????????????????????????????????????????????? | | ?????????????????????????????????????????????????? | | ?????????????????????????????????????????????????? | | ?????????????????????????????????????????????????? | | ?????????????????????????????????????????????????? | | ?????????????????????????????????????????????????? | | ?????????????????????????????????????????????????? | | ?????????????????????????????????????????????????? | | ?????+???????????????????????????????????????????? | | ?????????????????????????????????????????????????? | | ?????????????????????????????????????????????????? | | ?????????????????????????????????????????????????? | | ?????????????????????????????????????????????????? | | ?????????????????????????????????????????????????? | | ####?????????????????????????????????????????????? | | #?????????????????????????????????????????????? | | #?????????????????????????????????????????????? | | # ###???#########???###############??????????????? | | ##### ##### ???????????????? | | #??????????????????????? | | < @#??????????????????????? | | #??????????????????????? | | # # k #??????????????????????? | | # "|"!" # ss[#??????????????????????? | | #""|"!""# sss#??????????????????????? | | ######### a s* ????????????????????? | | ???[ k ?????????????????? | | ???????????????? | | !!! T ###+######### #?????????????? | | !! #? ??????????? ?????????????? | | !! #? ?????????????????????????? | | ^ #? ?????????????????????????? | | + ?????????????????????????? | | ? ##### ?????????????????????????? | | """ ""?? ????? ??????????????????????????? | | ""? ??????? ??????????????????????????????????? | | "???????????????????????????????????????????????? | | ????????????????????????????????????????????????? | | ?????????????????????????????????????????????????? | | ?????????????????????????????????????????????????? | | ?????????????????????????????????????????????????? | | ?????????????????????????????????????????????????? | | ?????????????????????????????????????????????????? | | ?????????????????????????????????????????????????? | | ?????????????????????????????????????????????????? | +----------------------------------------------------+ Best States ------------- Heat Dissipation 39 Energy Generation 14 Energy Capacity 280 Matter Stores 300 Matter Capacity 300 Sight Range 16 Robot Scan Range 14 Terrain Scan Density 10 ECM Strength 1 Evasion (%) 55 Item Schematics ----------------- None Robot Schematics ------------------ None Fabricated ------------ Nothing Alien Tech Used ----------------- None Achievements -------------- None Challenges ------------ None Game ------ Seed DispersionDerelictUnit Manual? 0 Play Time 00:15:22 Cumulative 17.5 hours Start 2024.04.07 @ 23:56:30 End 2024.04.09 @ 07:07:20 Sessions 4 Manual Loads 0 Difficulty Rogue Special Mode None Game No. 40 Rogue 39 Adventurer 1 Explorer 0 Win Type - Total 0 Types 0/0/0/0/0/0/0/0/0 Lore% 8 Gallery% 21 Achievement% 19 Wizard Run 0 Options --------- Layout 1 ASCII 0 Keyboard 0 Movement Mouse Keybinds 0 Fullscreen 2 Font 24/Terminus Map View 50x35 Zoom Use 0% Tactical HUD 0 Map Filters NONE Filters NONE Steam 1 RUN: bb28b245-2f3a-4862-bb1b-3f39e0dcac59